fUST/lending_fUST_20241128
["ID","MTS","AMOUNT","RATE_DAILY","PERIOD"]
[343620559,1732753849999,-575.08,0.00024657,3]
[343620560,1732753850008,-575.08,0.00024657,3]
[343620561,1732753850018,-575.08,0.00024657,3]
[343620562,1732753850030,-575.08,0.00024657,3]
[343620563,1732753850042,-575.08,0.00024657,3]
[343620564,1732753850051,-575.11552583,0.00024657,3]
[343620565,1732753850061,-500.0,0.00024657,3]
[343620566,1732753850070,-500.0,0.00024657,3]
[343620567,1732753850081,-500.0,0.00024657,3]
[343620568,1732753850091,-494.72,0.00024657,3]
[343620569,1732753850100,-500.0,0.00024657,3]
[343620570,1732753850110,-621.27382963,0.00024657,3]
[343620571,1732753850120,-500.0,0.00024657,3]
[343620572,1732753850129,-500.0,0.00024657,3]
[343620573,1732753850139,-500.0,0.00024657,3]
[343620574,1732753850150,-500.0,0.00024657,3]
[343620575,1732753850159,-500.0,0.00024657,3]
[343620576,1732753850168,-500.0,0.00024657,3]
[343620577,1732753850177,-500.0,0.00024657,3]
[343620578,1732753850186,-500.0,0.00024657,3]
[343620579,1732753850196,-500.0,0.00024657,3]
[343620580,1732753850206,-588.34,0.00024657,3]
[343620581,1732753850216,-197.3127345,0.00024658,15]
[343620582,1732753850226,-448.00020524,0.00024671,2]
[343620583,1732753850236,-223.8405817,0.00024673,2]
[343620584,1732753850247,-500.0,0.00024673,2]
[343620585,1732753850256,-500.0,0.00024673,2]
[343620586,1732753850271,-183.187591,0.00024679,2]
[343620587,1732753850280,-420.0,0.00024877,2]
[343620588,1732753850293,-151.0,0.000249,9]
[343620589,1732753850302,-500.0,0.00024973,2]
[343620590,1732753850313,-212.8417378,0.00024986,2]
[343620591,1732753850323,-212.8417378,0.00024986,2]
[343620592,1732753850335,-212.4399962,0.00024986,2]
[343620593,1732753850344,-251.0,0.00025,2]
[343620594,1732753850355,-12536.23118598,0.00025,2]
[343620595,1732753850365,-41504.74555831,0.00025,7]
[343620596,1732753850375,-25094.95628279,0.00025,2]
[343620597,1732753850385,-302.75782099,0.00025,2]
[343620598,1732753850395,-21911.11514491,0.0002509,2]
[343620599,1732753850406,-183.187591,0.00025131,2]
[343620600,1732753850415,-300.0,0.000252,2]
[343620601,1732753850426,-1000.0,0.00025221,2]
[343620602,1732753850436,-302.75782099,0.0002525,2]
[343620603,1732753850446,-151.0,0.000253,14]
[343620604,1732753850456,-1153.36477486,0.00025343,2]
[343620605,1732753850466,-76198.58338063,0.000255,2]
[343620606,1732753850594,-151.0,0.000255,7]
[343620607,1732753850606,-151.0,0.000255,7]
[343620608,1732753850616,-302.75782099,0.000255,2]
[343620609,1732753850626,-1000.0,0.00025521,2]
[343620610,1732753850636,-183.187591,0.00025584,2]
[343620611,1732753850646,-322.29641944,0.00025701,2]
[343620612,1732753850657,-313.64880537,0.0002575,2]
[343620613,1732753850667,-179.852,0.00025771,11]
[343620614,1732753850679,-211.0,0.00025775,2]
[343620615,1732753850688,-151.0,0.000258,17]
[343620616,1732753850698,-316.90001026,0.00025904,2]
[343620617,1732753850707,-183.187591,0.00026037,2]
[343620618,1732753850717,-300.0,0.000262,2]
[343620619,1732753850727,-151.0,0.000262,10]
[343620620,1732753850738,-509.0596631,0.00026222,2]
[343620621,1732753850751,-153.0,0.00026458,2]
[343620622,1732753850761,-344.31383677,0.00026522,2]
[343620623,1732753850771,-1153.36477486,0.00026529,2]
[343620624,1732753850781,-157.1,0.0002665,4]
[343620625,1732753850791,-587.0,0.00026672,2]
[343620626,1732753850800,-151.0,0.000267,16]
[343620627,1732753850810,-259.385114,0.00026921,2]
[343620628,1732753850820,-310.61482097,0.00026986,2]
[343620629,1732753850829,-1836.87445547,0.00027029,7]
[343620630,1732753850838,-157.1,0.00027071,5]
[343620631,1732753850848,-53952.14980958,0.000271,2]
[343620632,1732753850857,-300.0,0.000272,2]
[343620633,1732753850867,-151.0,0.000272,10]
[343620634,1732753850877,-587.0,0.00027364,2]
[343620635,1732753850887,-211.0,0.00027386,2]
[343620636,1732753850896,-211.86711422,0.00027397,2]
[343620637,1732753850906,-500.0,0.00027397,2]
[343620638,1732753850916,-500.0,0.00027397,3]
[343620639,1732753850926,-500.0,0.00027397,3]
[343620640,1732753850937,-500.0,0.00027397,3]
[343620641,1732753850946,-500.0,0.00027397,3]
[343620642,1732753850956,-500.0,0.00027397,3]
[343620643,1732753850965,-500.0,0.00027397,3]
[343620644,1732753850976,-414.04063041,0.00027397,3]
[343620645,1732753850985,-188.0,0.00027397,30]
[343620646,1732753850996,-188.0,0.00027397,30]
[343620647,1732753851006,-188.0,0.00027397,30]
[343620648,1732753851016,-188.0,0.00027397,30]
[343620649,1732753851026,-188.0,0.00027397,30]
[343620650,1732753851036,-188.0,0.00027397,30]
[343620651,1732753851049,-188.0,0.00027397,30]
[343620652,1732753851059,-188.0,0.00027397,30]
[343620653,1732753851068,-188.0,0.00027397,30]
[343620654,1732753851078,-275.48966603,0.00027397,30]
[343620655,1732753851088,-157.1,0.00027492,5]
[343620656,1732753851099,-151.0,0.000276,13]
[343620657,1732753851109,-300.224466,0.000276,18]
[343620658,1732753851119,-211.0,0.00027616,2]
[343620659,1732753851128,-1153.36477486,0.00027714,2]
[343620660,1732753851138,-20000.0,0.00027803,2]
[343620661,1732753851150,-1849.999999,0.00027852,2]
[343620662,1732753851161,-157.1,0.00027913,5]
[343620663,1732753851170,-500.0,0.00027973,5]
[343620664,1732753851180,-500.0,0.00027973,5]
[343620665,1732753851190,-500.13604431,0.00027973,5]
[343620666,1732753851200,-559.32896439,0.00027973,5]
[343620667,1732753851209,-500.0,0.00027973,5]
[343620668,1732753851219,-601.54523118,0.00027973,5]
[343620669,1732753851229,-150.0,0.00027973,5]
[343620670,1732753851239,-3828.65841742,0.00028,7]
[343620671,1732753851250,-72870.67420078,0.00028,30]
[343620672,1732753851260,-16041.66913569,0.00028,2]
[343620673,1732753851273,-6390.0763772,0.00028,7]
[343620674,1732753851282,-500.0,0.00028,7]
[343620675,1732753851294,-500.0,0.00028,7]
[343620676,1732753851303,-500.0,0.00028,7]
[343620677,1732753851314,-586.54,0.00028,7]
[343620678,1732753851324,-273.9317,0.00028,7]
[343620679,1732753851334,-273.9317,0.00028,7]
[343620680,1732753851343,-151.0,0.00028,7]
[343620681,1732753851354,-200.9,0.00028,2]
[343620682,1732753851364,-151.0,0.00028,7]
[343620683,1732753851374,-151.0,0.00028,18]
[343620684,1732753851385,-151.0,0.000281,10]
[343620685,1732753851395,-616.0,0.000281,2]
[343620686,1732753851404,-531.0,0.00028109,2]
[343620687,1732753851414,-1104.0,0.00028109,2]
[343620688,1732753851425,-2377.0,0.00028109,2]
[343620689,1732753851434,-1621.455,0.00028109,2]
[343620690,1732753851446,-300.0,0.000282,2]
[343620691,1732753851457,-157.1,0.00028335,6]
[343620692,1732753851467,-3000.0,0.000284,2]
[343620693,1732753851477,-3000.0,0.0002841,2]
[343620694,1732753851487,-3000.0,0.0002842,2]
[343620695,1732753851497,-3000.0,0.0002843,2]
[343620696,1732753851506,-3000.0,0.0002844,2]
[343620697,1732753851516,-3000.0,0.0002845,2]
[343620698,1732753851526,-3000.0,0.0002846,2]
[343620699,1732753851536,-3000.0,0.0002847,2]
[343620700,1732753851551,-3000.0,0.0002848,2]
[343620701,1732753851560,-3000.0,0.0002849,2]
[343620702,1732753851570,-151.0,0.0002849,7]
[343620703,1732753851580,-151.0,0.0002849,7]
[343620704,1732753851589,-948.902806,0.0002849,7]
[343620705,1732753851599,-948.902806,0.0002849,7]
[343620706,1732753851608,-151.216463,0.0002849,7]
[343620707,1732753851617,-174.780875,0.0002849,7]
[343620708,1732753851627,-174.780875,0.0002849,7]
[343620709,1732753851637,-151.0,0.0002849,7]
[343620710,1732753851647,-3000.0,0.000285,2]
[343620711,1732753851656,-151.0,0.000285,7]
[343620712,1732753851665,-151.0,0.000285,7]
[343620713,1732753851675,-153.007081,0.000285,7]
[343620714,1732753851685,-151.0,0.000285,20]
[343620715,1732753851694,-151.0,0.000285,13]
[343620716,1732753851703,-3000.0,0.0002851,2]
[343620717,1732753851713,-372.100039,0.0002851,7]
[343620718,1732753851723,-372.100039,0.0002851,7]
[343620719,1732753851732,-151.0,0.0002851,7]
[343620720,1732753851742,-151.0,0.0002851,7]
[343620721,1732753851752,-1646.683998,0.0002851,7]
[343620722,1732753851761,-1646.683998,0.0002851,7]
[343620723,1732753851771,-3000.0,0.0002852,2]
[343620724,1732753851780,-1000.0,0.00028521,5]
[343620725,1732753851795,-500.0,0.00028521,5]
[343620726,1732753851805,-1000.0,0.00028521,5]
[343620727,1732753851815,-291.29469664,0.00028521,5]
[343620728,1732753851829,-3000.0,0.0002853,2]
[343620729,1732753851839,-3000.0,0.0002854,2]
[343620730,1732753851849,-3000.0,0.0002855,2]
[343620731,1732753851859,-3000.0,0.0002856,2]
[343620732,1732753851868,-151.0,0.0002856,7]
[343620733,1732753851878,-3000.0,0.0002857,2]
[343620734,1732753851887,-3000.0,0.0002858,2]
[343620735,1732753851897,-3000.0,0.0002859,2]
[343620736,1732753851906,-3000.0,0.000286,2]
[343620737,1732753851915,-3000.0,0.0002861,2]
[343620738,1732753851925,-3000.0,0.0002862,2]
[343620739,1732753851935,-3000.0,0.0002863,2]
[343620740,1732753851943,-3000.0,0.0002864,2]
[343620741,1732753851952,-3000.0,0.0002865,2]
[343620742,1732753851962,-3000.0,0.0002866,2]
[343620743,1732753851974,-3000.0,0.0002867,2]
[343620744,1732753851983,-3000.0,0.0002868,2]
[343620745,1732753851993,-5268.541788,0.0002869,2]
[343620746,1732753852003,-157.1,0.00028756,6]
[343620747,1732753852012,-500.0,0.00028767,4]
[343620748,1732753852021,-150.0,0.00028835,2]
[343620749,1732753852031,-152.212,0.00028835,2]
[343620750,1732753852046,-275.5,0.000289,2]
[343620751,1732753852055,-153.91769962,0.000289,7]
[343620752,1732753852064,-153.91,0.000289,7]
[343620753,1732753852073,-1153.36477486,0.000289,2]
[343620754,1732753852083,-823.0,0.00028965,2]
[343620755,1732753852092,-211.0,0.00028997,2]
[343620756,1732753852102,-163.40124022,0.00028999,10]
[343620757,1732753852112,-2487807.67284357,0.00029,15]
[343620758,1732753852122,-1841.83890711,0.00029,2]
[343620759,1732753852132,-129221.81155833,0.00029,7]
[343620760,1732753852142,-372.100039,0.00029,7]
[343620761,1732753852151,-372.100039,0.00029,7]
[343620762,1732753852161,-151.0,0.00029,7]
[343620763,1732753852171,-273.9317,0.00029,7]
[343620764,1732753852181,-273.9317,0.00029,7]
[343620765,1732753852191,-212.441438,0.00029,7]
[343620766,1732753852200,-151.0,0.00029,7]
[343620767,1732753852210,-1646.683998,0.00029,7]
[343620768,1732753852220,-1646.683998,0.00029,7]
[343620769,1732753852230,-151.0,0.00029,7]
[343620770,1732753852239,-151.0,0.00029,7]
[343620771,1732753852249,-151.495492,0.00029,7]
[343620772,1732753852259,-151.0,0.00029,7]
[343620773,1732753852270,-151.0,0.00029,7]
[343620774,1732753852280,-151.0,0.00029,7]
[343620775,1732753852294,-948.902806,0.00029,7]
[343620776,1732753852303,-948.902806,0.00029,7]
[343620777,1732753852313,-174.780875,0.00029,7]
[343620778,1732753852323,-174.780875,0.00029,7]
[343620779,1732753852333,-151.0,0.00029,7]
[343620780,1732753852344,-711.394821,0.00029,29]
[343620781,1732753852354,-150.12,0.00029,15]
[343620782,1732753852364,-150.12,0.00029,2]
[343620783,1732753852374,-150.12,0.00029,15]
[343620784,1732753852383,-150.12,0.00029,2]
[343620785,1732753852392,-500.0,0.00029,15]
[343620786,1732753852402,-500.0,0.00029,15]
[343620787,1732753852412,-500.0,0.00029,15]
[343620788,1732753852422,-500.0,0.00029,15]
[343620789,1732753852433,-150.12,0.00029,2]
[343620790,1732753852443,-150.12,0.00029,15]
[343620791,1732753852453,-150.12,0.00029,15]
[343620792,1732753852462,-1235.0133,0.00029,2]
[343620793,1732753852472,-500.0,0.00029,15]
[343620794,1732753852482,-150.12,0.00029,15]
[343620795,1732753852493,-500.0,0.00029,15]
[343620796,1732753852502,-150.12,0.00029,15]
[343620797,1732753852512,-299.89991911,0.00029,15]
[343620798,1732753852521,-500.0,0.00029,15]
[343620799,1732753852531,-150.12,0.00029,15]
[343620800,1732753852544,-150.12,0.00029,15]
[343620801,1732753852553,-258.97319202,0.00029031,2]
[343620802,1732753852562,-1520.78,0.000291,2]
[343620803,1732753852572,-172.077301,0.00029142,2]
[343620804,1732753852581,-298.035284,0.00029142,2]
[343620805,1732753852590,-1119.223285,0.00029142,2]
[343620806,1732753852600,-183.844913,0.00029142,2]
[343620807,1732753852609,-171.994268,0.00029142,2]
[343620808,1732753852619,-193.611514,0.00029142,2]
[343620809,1732753852628,-1221.261722,0.00029142,2]
[343620810,1732753852638,-172.077303,0.00029142,2]
[343620811,1732753852647,-157.1,0.00029177,6]
[343620812,1732753852657,-300.0,0.000292,2]
[343620813,1732753852667,-942.0,0.0002927,120]
[343620814,1732753852677,-150.12,0.00029274,15]
[343620815,1732753852687,-500.0,0.00029274,15]
[343620816,1732753852697,-500.0,0.00029274,15]
[343620817,1732753852708,-500.0,0.00029274,15]
[343620818,1732753852718,-500.0,0.00029274,15]
[343620819,1732753852729,-150.12,0.00029274,15]
[343620820,1732753852738,-180.40290133,0.00029274,15]
[343620821,1732753852747,-500.0,0.00029274,15]
[343620822,1732753852757,-150.13178377,0.00029274,15]
[343620823,1732753852766,-654.51114342,0.00029274,15]
[343620824,1732753852777,-150.12,0.00029274,15]
[343620825,1732753852787,-500.0,0.00029274,15]
[343620826,1732753852799,-150.36955154,0.00029274,15]
[343620827,1732753852809,-150.12,0.00029274,15]
[343620828,1732753852818,-942.0,0.0002928,120]
[343620829,1732753852828,-942.0,0.0002929,120]
[343620830,1732753852837,-948.902806,0.00029307,7]
[343620831,1732753852848,-948.902806,0.00029307,7]
[343620832,1732753852858,-151.0,0.00029352,7]
[343620833,1732753852867,-174.780875,0.00029352,7]
[343620834,1732753852876,-174.780875,0.00029352,7]
[343620835,1732753852887,-151.0,0.00029352,7]
[343620836,1732753852897,-1119.223285,0.00029506,2]
[343620837,1732753852908,-193.611514,0.00029506,2]
[343620838,1732753852918,-1221.261722,0.00029506,2]
[343620839,1732753852928,-1500.0,0.00029522,5]
[343620840,1732753852938,-267.93389669,0.00029548,15]
[343620841,1732753852950,-509.31319958,0.00029548,15]
[343620842,1732753852961,-500.0,0.00029548,15]
[343620843,1732753852971,-500.0,0.00029548,15]
[343620844,1732753852980,-500.0,0.00029548,15]
[343620845,1732753852990,-150.12,0.00029548,15]
[343620846,1732753852999,-500.0,0.00029548,15]
[343620847,1732753853009,-150.12,0.00029548,15]
[343620848,1732753853018,-500.0,0.00029548,15]
[343620849,1732753853029,-151.0,0.00029548,7]
[343620850,1732753853038,-151.0,0.00029548,7]
[343620851,1732753853050,-157.1,0.00029598,6]
[343620852,1732753853060,-32359.79171158,0.0002961,2]
[343620853,1732753853069,-372.100039,0.0002961,7]
[343620854,1732753853080,-372.100039,0.0002961,7]
[343620855,1732753853089,-151.0,0.0002961,7]
[343620856,1732753853098,-273.9317,0.0002961,7]
[343620857,1732753853108,-273.9317,0.0002961,7]
[343620858,1732753853118,-151.0,0.0002961,7]
[343620859,1732753853128,-1646.683998,0.0002961,7]
[343620860,1732753853139,-1646.683998,0.0002961,7]
[343620861,1732753853149,-166.337466,0.0002961,7]
[343620862,1732753853159,-183.844913,0.00029628,2]
[343620863,1732753853168,-7000.67349825,0.00029638,7]
[343620864,1732753853178,-500.0,0.00029822,15]
[343620865,1732753853189,-500.0,0.00029822,15]
[343620866,1732753853199,-500.0,0.00029822,15]
[343620867,1732753853209,-203.6940026,0.00029822,15]
[343620868,1732753853221,-500.0,0.00029822,15]
[343620869,1732753853231,-150.45007937,0.00029822,15]
[343620870,1732753853240,-500.0,0.00029822,15]
[343620871,1732753853250,-1119.223285,0.0002987,2]
[343620872,1732753853260,-193.611514,0.0002987,2]
[343620873,1732753853273,-1221.261722,0.0002987,2]
[343620874,1732753853284,-300.0,0.000299,2]
[343620875,1732753853297,-150.0,0.00029925,120]
[343620876,1732753853307,-942.0,0.00029969,120]
[343620877,1732753853316,-150.0,0.00029973,5]
[343620878,1732753853431,-942.0,0.00029979,120]
[343620879,1732753853444,-7674.10237504,0.00029987,14]
[343620880,1732753853455,-942.0,0.00029989,120]
[343620881,1732753853465,-99963.37780441,0.0003,2]
[343620882,1732753853475,-151.0,0.0003,120]
[343620883,1732753853484,-894.61952165,0.0003,2]
[343620884,1732753853494,-47068.42255534,0.0003,15]
[343620885,1732753853504,-7970.97234951,0.0003,10]
[343620886,1732753853515,-1500.0,0.0003,2]
[343620887,1732753853525,-1023.82954509,0.0003,7]
[343620888,1732753853534,-364.22729953,0.0003,30]
[343620889,1732753853548,-520.0,0.0003,30]
[343620890,1732753853558,-11779.72741435,0.0003,15]
[343620891,1732753853567,-159.0,0.0003,2]
[343620892,1732753853579,-628.432904,0.0003,7]
[343620893,1732753853588,-628.432904,0.0003,7]
[343620894,1732753853597,-151.0,0.0003,7]
[343620895,1732753853607,-151.0,0.0003,7]
[343620896,1732753853617,-151.0,0.0003,7]
[343620897,1732753853626,-151.0,0.0003,7]
[343620898,1732753853636,-151.0,0.0003,7]
[343620899,1732753853645,-151.0,0.0003,7]
[343620900,1732753853654,-372.100039,0.0003,7]
[343620901,1732753853664,-372.100039,0.0003,7]
[343620902,1732753853673,-151.0,0.0003,7]
[343620903,1732753853682,-151.0,0.0003,7]
[343620904,1732753853692,-151.0,0.0003,7]
[343620905,1732753853701,-273.9317,0.0003,7]
[343620906,1732753853710,-273.9317,0.0003,7]
[343620907,1732753853720,-205.04025,0.0003,2]
[343620908,1732753853730,-151.0,0.0003,7]
[343620909,1732753853739,-1646.683998,0.0003,7]
[343620910,1732753853748,-1646.683998,0.0003,7]
[343620911,1732753853758,-151.0,0.0003,7]
[343620912,1732753853767,-151.0,0.0003,7]
[343620913,1732753853776,-151.0,0.0003,7]
[343620914,1732753853787,-948.902806,0.0003,7]
[343620915,1732753853799,-948.902806,0.0003,7]
[343620916,1732753853809,-174.780875,0.0003,7]
[343620917,1732753853818,-174.780875,0.0003,7]
[343620918,1732753853827,-151.0,0.0003,7]
[343620919,1732753853837,-237.0,0.0003,2]
[343620920,1732753853847,-157.1,0.00030019,7]
[343620921,1732753853856,-600.0,0.00030023,2]
[343620922,1732753853865,-207.0,0.0003005,27]
[343620923,1732753853875,-600.68,0.00030096,15]
[343620924,1732753853885,-500.0,0.00030096,15]
[343620925,1732753853895,-500.0,0.00030096,15]
[343620926,1732753853904,-600.68,0.00030096,15]
[343620927,1732753853914,-500.0,0.00030096,15]
[343620928,1732753853927,-160.0,0.00030098,3]
[343620929,1732753853936,-823.0,0.00030101,2]
[343620930,1732753853946,-183.844913,0.00030113,2]
[343620931,1732753853955,-500.0,0.00030136,6]
[343620932,1732753853965,-2848.3769,0.00030137,120]
[343620933,1732753853974,-175.55806771,0.00030137,2]
[343620934,1732753853984,-300.0,0.000302,2]
[343620935,1732753853996,-500.0,0.00030225,11]
[343620936,1732753854007,-500.0,0.00030225,11]
[343620937,1732753854016,-1119.223285,0.00030235,2]
[343620938,1732753854026,-193.611514,0.00030235,2]
[343620939,1732753854035,-1221.261722,0.00030235,2]
[343620940,1732753854048,-618.20657003,0.00030336,2]
[343620941,1732753854057,-5000.0,0.00030363,7]
[343620942,1732753854067,-4958.06021646,0.00030364,7]
[343620943,1732753854076,-201.04030327,0.0003037,15]
[343620944,1732753854086,-500.0,0.0003037,15]
[343620945,1732753854095,-560.55874765,0.0003037,15]
[343620946,1732753854104,-500.0,0.0003037,15]
[343620947,1732753854114,-157.1,0.00030441,7]
[343620948,1732753854124,-942.0,0.0003049,120]
[343620949,1732753854134,-942.0,0.000305,120]
[343620950,1732753854144,-250.0,0.00030521,5]
[343620951,1732753854153,-1119.223285,0.00030599,2]
[343620952,1732753854163,-193.611514,0.00030599,2]
[343620953,1732753854173,-1221.261722,0.00030599,2]
[343620954,1732753854183,-171.994268,0.00030599,2]
[343620955,1732753854194,-172.077303,0.00030599,2]
[343620956,1732753854204,-183.844913,0.00030599,2]
[343620957,1732753854214,-363.54,0.000306,31]
[343620958,1732753854224,-363.54,0.000306,31]
[343620959,1732753854235,-363.54,0.000306,31]
[343620960,1732753854244,-363.54,0.000306,31]
[343620961,1732753854254,-363.54,0.000306,31]
[343620962,1732753854264,-363.54,0.000306,31]
[343620963,1732753854276,-363.54,0.000306,31]
[343620964,1732753854287,-363.54,0.000306,31]
[343620965,1732753854300,-363.54,0.000306,31]
[343620966,1732753854310,-363.54,0.000306,31]
[343620967,1732753854320,-363.54,0.000306,31]
[343620968,1732753854329,-363.54,0.000306,31]
[343620969,1732753854340,-152.449411,0.00030603,30]
[343620970,1732753854351,-500.0,0.00030644,15]
[343620971,1732753854360,-500.0,0.00030644,15]
[343620972,1732753854370,-398.39,0.00030666,30]
[343620973,1732753854380,-318.0,0.00030666,30]
[343620974,1732753854390,-659.09076086,0.0003082,5]
[343620975,1732753854401,-157.1,0.00030862,7]
[343620976,1732753854410,-300.0,0.000309,4]
[343620977,1732753854420,-500.0,0.00030918,15]
[343620978,1732753854430,-500.0,0.00030918,15]
[343620979,1732753854439,-150.0,0.00030949,120]
[343620980,1732753854450,-4704.30135525,0.0003099,2]
[343620981,1732753854459,-40539.35253889,0.00031,120]
[343620982,1732753854469,-24999.999999,0.00031,2]
[343620983,1732753854478,-798.98421488,0.00031,2]
[343620984,1732753854489,-374380.52883834,0.00031,15]
[343620985,1732753854498,-151.0,0.00031,7]
[343620986,1732753854507,-18448.15950378,0.00031,15]
[343620987,1732753854517,-628.432904,0.00031,7]
[343620988,1732753854527,-628.432904,0.00031,7]
[343620989,1732753854536,-151.0,0.00031,7]
[343620990,1732753854554,-151.0,0.00031,7]
[343620991,1732753854563,-151.0,0.00031,7]
[343620992,1732753854574,-151.0,0.00031,2]
[343620993,1732753854583,-151.0,0.00031,7]
[343620994,1732753854593,-151.0,0.00031,7]
[343620995,1732753854602,-151.0,0.00031,7]
[343620996,1732753854612,-372.100039,0.00031,7]
[343620997,1732753854621,-372.100039,0.00031,7]
[343620998,1732753854631,-151.0,0.00031,7]
[343620999,1732753854640,-207.172544,0.00031,7]
[343621000,1732753854649,-151.0,0.00031,7]
[343621001,1732753854659,-273.9317,0.00031,7]
[343621002,1732753854668,-273.9317,0.00031,7]
[343621003,1732753854677,-151.0,0.00031,7]
[343621004,1732753854687,-1646.683998,0.00031,7]
[343621005,1732753854696,-1646.683998,0.00031,7]
[343621006,1732753854706,-151.0,0.00031,7]
[343621007,1732753854715,-151.0,0.00031,7]
[343621008,1732753854725,-151.0,0.00031,7]
[343621009,1732753854734,-154.288495,0.00031,7]
[343621010,1732753854744,-948.902806,0.00031,7]
[343621011,1732753854753,-948.902806,0.00031,7]
[343621012,1732753854762,-948.902806,0.00031,7]
[343621013,1732753854772,-948.902806,0.00031,7]
[343621014,1732753854781,-174.780875,0.00031,7]
[343621015,1732753854793,-174.780875,0.00031,7]
[343621016,1732753854803,-174.780875,0.00031,7]
[343621017,1732753854813,-174.780875,0.00031,7]
[343621018,1732753854822,-151.0,0.00031,7]
[343621019,1732753854831,-164.429,0.00031,7]
[343621020,1732753854841,-150.0,0.00031009,120]
[343621021,1732753854850,-500.0,0.00031024,7]
[343621022,1732753854860,-3200.0,0.00031024,2]
[343621023,1732753854869,-288.379,0.00031024,7]
[343621024,1732753854879,-153.0,0.00031058,30]
[343621025,1732753854891,-153.0,0.00031058,30]
[343621026,1732753854901,-402.09231407,0.00031068,5]
[343621027,1732753854911,-300.0,0.000311,15]
[343621028,1732753854921,-531.0,0.00031109,2]
[343621029,1732753854931,-1104.0,0.00031109,2]
[343621030,1732753854940,-2377.0,0.00031109,2]
[343621031,1732753854950,-160.0,0.00031113,4]
[343621032,1732753854960,-500.0,0.00031192,15]
[343621033,1732753854970,-500.0,0.00031192,15]
[343621034,1732753854980,-195.3441705,0.00031195,30]
[343621035,1732753854989,-300.0,0.000312,4]
[343621036,1732753854998,-1000.0,0.000312,3]
[343621037,1732753855009,-1000.0,0.000312,10]
[343621038,1732753855019,-186.0,0.000312,4]
[343621039,1732753855029,-260.71679391,0.000312,30]
[343621040,1732753855038,-272.007924,0.000312,2]
[343621041,1732753855051,-1009.30388336,0.00031265,4]
[343621042,1732753855061,-157.1,0.00031283,7]
[343621043,1732753855070,-1235.0133,0.000313,2]
[343621044,1732753855080,-457.348233,0.00031425,30]
[343621045,1732753855090,-151.0,0.00031427,7]
[343621046,1732753855102,-151.0,0.00031427,7]
[343621047,1732753855112,-151.0,0.00031427,7]
[343621048,1732753855122,-151.0,0.00031427,7]
[343621049,1732753855132,-948.902806,0.00031427,7]
[343621050,1732753855143,-948.902806,0.00031427,7]
[343621051,1732753855153,-948.902806,0.00031427,7]
[343621052,1732753855163,-948.902806,0.00031427,7]
[343621053,1732753855173,-948.902806,0.00031427,7]
[343621054,1732753855184,-948.902806,0.00031427,7]
[343621055,1732753855194,-948.902806,0.00031427,7]
[343621056,1732753855204,-948.90281,0.00031427,7]
[343621057,1732753855214,-174.780875,0.00031427,7]
[343621058,1732753855224,-174.780875,0.00031427,7]